fUSD/lending_fUSD_20250206
["ID","MTS","AMOUNT","RATE_DAILY","PERIOD"]
[352001112,1738873851673,-827.67,0.00017256,2]
[352001113,1738873851683,-1014.92,0.00017256,2]
[352001114,1738873851693,-500.0,0.00017256,2]
[352001115,1738873851702,-500.0,0.00017256,2]
[352001116,1738873851712,-510.83,0.00017256,2]
[352001117,1738873851721,-1868.94,0.00017256,2]
[352001118,1738873851732,-598.1,0.00017256,2]
[352001119,1738873851742,-1007.55,0.00017256,2]
[352001120,1738873851751,-500.0,0.00017256,2]
[352001121,1738873851762,-780.14,0.00017256,2]
[352001122,1738873851772,-1049.49,0.00017256,2]
[352001123,1738873851782,-531.5,0.00017256,2]
[352001124,1738873851791,-500.0,0.00017256,2]
[352001125,1738873851801,-824.13,0.00017256,2]
[352001126,1738873851810,-524.56,0.00017256,2]
[352001127,1738873851820,-857.4,0.00017256,2]
[352001128,1738873851830,-500.0,0.00017256,2]
[352001129,1738873851844,-688.21,0.00017256,2]
[352001130,1738873851854,-500.0,0.00017256,2]
[352001131,1738873851864,-958.57,0.00017256,2]
[352001132,1738873851873,-500.0,0.00017256,2]
[352001133,1738873851883,-621.13,0.00017256,2]
[352001134,1738873851893,-686.36,0.00017256,2]
[352001135,1738873851903,-675.98,0.00017256,2]
[352001136,1738873851913,-500.0,0.00017256,2]
[352001137,1738873851926,-806.26,0.00017256,2]
[352001138,1738873851936,-500.0,0.00017256,2]
[352001139,1738873851946,-500.0,0.00017256,2]
[352001140,1738873851959,-500.0,0.00017256,2]
[352001141,1738873851969,-500.0,0.00017256,2]
[352001142,1738873851979,-500.0,0.00017256,2]
[352001143,1738873851988,-500.0,0.00017256,2]
[352001144,1738873851997,-500.0,0.00017256,2]
[352001145,1738873852008,-500.0,0.00017256,2]
[352001146,1738873852019,-579.6,0.00017256,2]
[352001147,1738873852028,-500.0,0.00017256,2]
[352001148,1738873852038,-599.28,0.00017256,2]
[352001149,1738873852049,-500.0,0.00017256,2]
[352001150,1738873852059,-500.0,0.00017256,2]
[352001151,1738873852068,-500.0,0.00017256,2]
[352001152,1738873852077,-500.0,0.00017257,2]
[352001153,1738873852087,-698.5,0.00017257,2]
[352001154,1738873852097,-500.0,0.00017257,2]
[352001155,1738873852107,-500.0,0.00017257,2]
[352001156,1738873852117,-500.0,0.00017257,2]
[352001157,1738873852126,-500.0,0.00017257,2]
[352001158,1738873852136,-500.0,0.00017257,2]
[352001159,1738873852146,-500.0,0.00017257,2]
[352001160,1738873852156,-510.24,0.00017257,2]
[352001161,1738873852165,-614.86,0.00017257,2]
[352001162,1738873852176,-2036.06,0.00017257,2]
[352001163,1738873852186,-995.94,0.00017257,2]
[352001164,1738873852195,-497.89507387,0.00017257,2]
[352001165,1738873852208,-625.35,0.00017257,2]
[352001166,1738873852218,-500.0,0.00017257,2]
[352001167,1738873852228,-747.5,0.00017257,2]
[352001168,1738873852237,-912.55,0.00017257,2]
[352001169,1738873852246,-500.0,0.00017257,2]
[352001170,1738873852255,-552.3,0.00017257,2]
[352001171,1738873852265,-511.61,0.00017257,2]
[352001172,1738873852275,-60.12779058,0.00017257,2]
[352001173,1738873852288,-498.26220942,0.00017257,2]
[352001174,1738873852298,-583.72121826,0.00017257,2]
[352001175,1738873852310,-17.49878174,0.00017257,2]
[352001176,1738873852319,-500.0,0.00017257,2]
[352001177,1738873852329,-620.43,0.00017257,2]
[352001178,1738873852339,-500.0,0.00017257,2]
[352001179,1738873852349,-629.83,0.00017257,2]
[352001180,1738873852358,-44.73671846,0.00017257,2]
[352001181,1738873852369,-455.26328154,0.00017257,2]
[352001182,1738873852379,-500.0,0.00017257,2]
[352001183,1738873852388,-500.0,0.00017257,2]
[352001184,1738873852398,-603.83,0.00017257,2]
[352001185,1738873852407,-611.27,0.00017257,2]
[352001186,1738873852417,-500.0,0.00017257,2]
[352001187,1738873852427,-302.15705874,0.00017257,2]
[352001188,1738873852443,-197.84294126,0.00017257,2]
[352001189,1738873852454,-500.0,0.00017257,2]
[352001190,1738873852463,-474.56764121,0.00017257,2]
[352001191,1738873852476,-32.56235879,0.00017257,2]
[352001192,1738873852485,-956.84,0.00017257,2]
[352001193,1738873852496,-500.0,0.00017257,2]
[352001194,1738873852506,-549.23,0.00017257,2]
[352001195,1738873852516,-598.63,0.00017257,2]
[352001196,1738873852527,-607.46,0.00017257,2]
[352001197,1738873852537,-500.0,0.00017257,2]
[352001198,1738873852547,-500.0,0.00017257,2]
[352001199,1738873852557,-623.42,0.00017257,2]
[352001200,1738873852567,-65.3861123,0.00017257,2]
[352001201,1738873853130,-500.0,0.00016845,2]
[352001202,1738873853152,-500.0,0.00016846,2]
[352001203,1738873853163,-500.0,0.00016846,2]
[352001204,1738873853173,-500.0,0.00016982,2]
[352001205,1738873853184,-251.59,0.00017119,2]
[352001206,1738873853195,-434.6138877,0.00017257,2]
[352001207,1738873853208,-961.37,0.00017257,2]
[352001208,1738873853218,-524.89,0.00017257,2]
[352001209,1738873853229,-744.68,0.00017257,2]
[352001210,1738873853239,-914.92,0.00017257,2]
[352001211,1738873853250,-604.26,0.00017257,2]
[352001212,1738873853261,-505.6,0.00017257,2]
[352001213,1738873853271,-648.0,0.00017257,2]
[352001214,1738873853282,-1255.7,0.00017257,2]
[352001215,1738873853292,-500.0,0.00017257,2]
[352001216,1738873853303,-763.29,0.00017257,2]
[352001217,1738873853313,-500.0,0.00017257,2]
[352001218,1738873853323,-500.0,0.00017257,2]
[352001219,1738873853334,-130.2577123,0.00017257,2]
[352001220,1738873853352,-369.7422877,0.00017257,2]
[352001221,1738873853363,-598.2867424,0.00017257,2]
[352001222,1738873853375,-1084.7132576,0.00017257,2]
[352001223,1738873853385,-500.0,0.00017258,2]
[352001224,1738873853395,-500.0,0.00017258,2]
[352001225,1738873853406,-169.87731018,0.00017258,2]
[352001233,1738874888125,153.592317,9.881e-05,2]
[352001241,1738875031592,-154.64,0.00010137,2]
[352001242,1738875031602,-155.96,0.00010137,2]
[352001243,1738875031611,-250.0,0.00013394,2]
[352001244,1738875031620,-150.0,0.00013698,2]
[352001245,1738875031629,-3272.44186657,0.00013698,2]
[352001246,1738875031703,-1233.13019377,0.00013698,2]
[352001247,1738875031712,-529.88,0.00013699,2]
[352001248,1738875031721,-529.88,0.00013699,2]
[352001249,1738875031730,-529.88,0.00013699,2]
[352001250,1738875031746,-529.88,0.00013699,2]
[352001251,1738875031755,-529.88,0.00013699,2]
[352001252,1738875031764,-529.88,0.00013699,2]
[352001253,1738875031774,-529.88,0.00013699,2]
[352001254,1738875031786,-529.88,0.00013699,2]
[352001255,1738875031795,-529.88,0.00013699,2]
[352001256,1738875031804,-529.88,0.00013699,2]
[352001257,1738875031814,-529.88,0.00013699,2]
[352001258,1738875031823,-529.88,0.00013699,2]
[352001259,1738875031832,-529.88,0.00013699,2]
[352001260,1738875031841,-529.88,0.00013699,2]
[352001261,1738875031850,-529.88,0.00013699,2]
[352001262,1738875031859,-529.88,0.00013699,2]
[352001263,1738875031869,-529.88,0.00013699,2]
[352001264,1738875031878,-529.88,0.00013699,2]
[352001265,1738875031889,-529.88,0.00013699,2]
[352001266,1738875031898,-529.98980927,0.00013699,2]
[352001267,1738875031908,-238.0,0.00013699,2]
[352001268,1738875031917,-784.96,0.00014331,2]
[352001269,1738875031927,-381.59,0.00015315,2]
[352001270,1738875031936,-194.25,0.00015862,2]
[352001271,1738875031945,-2542.91,0.00015862,2]
[352001272,1738875031955,-1000.0,0.00016249,2]
[352001273,1738875031964,-262.87248574,0.00016438,2]
[352001274,1738875031973,-774.87,0.00016441,2]
[352001275,1738875031982,-784.96,0.00016595,2]
[352001276,1738875031991,-489.97,0.00016658,30]
[352001278,1738875032000,-1900.0,0.0001678,2]
[352001280,1738875032009,-5200.0,0.0001678,2]
[352001282,1738875032019,-373.47,0.00016844,2]
[352001284,1738875032028,-370.43,0.00016844,2]
[352001286,1738875032037,-368.61,0.00016844,2]
[352001288,1738875032046,-373.0,0.00016844,2]
[352001290,1738875032055,-382.27,0.00016845,2]
[352001292,1738875032064,-379.88,0.00016845,2]
[352001294,1738875032073,-377.0,0.00016845,2]
[352001296,1738875032082,-374.97,0.00016845,2]
[352001298,1738875032090,-369.09,0.00016845,2]
[352001300,1738875032099,-378.96,0.00016845,2]
[352001302,1738875032109,-500.0,0.00016845,2]
[352001304,1738875032118,-500.0,0.00016845,2]
[352001306,1738875032127,-500.0,0.00016846,2]
[352001308,1738875032138,-500.0,0.00016846,2]
[352001310,1738875032147,-500.0,0.00016846,2]
[352001312,1738875032157,-500.0,0.00016846,2]
[352001314,1738875032166,-500.0,0.00016846,2]
[352001316,1738875032176,-500.0,0.00016846,2]
[352001318,1738875032186,-500.0,0.00016846,2]
[352001320,1738875032194,-500.0,0.00016846,2]
[352001322,1738875032203,-500.0,0.00016846,2]
[352001324,1738875032212,-500.0,0.00016846,2]
[352001326,1738875032221,-500.0,0.00016846,2]
[352001328,1738875032230,-500.0,0.00016846,2]
[352001330,1738875032239,-500.0,0.00016846,2]
[352001332,1738875032248,-500.0,0.00016846,2]
[352001334,1738875032258,-500.0,0.00016846,2]
[352001336,1738875032267,-500.0,0.00016846,2]
[352001338,1738875032276,-500.0,0.00016846,2]
[352001340,1738875032285,-500.0,0.00016846,2]
[352001342,1738875032295,-500.0,0.00016846,2]
[352001344,1738875032303,-500.0,0.00016846,2]
[352001345,1738875032315,-385.57962318,0.00016846,2]
[352001347,1738875032324,-253.00039542,0.00016846,2]
[352001349,1738875032334,-161.64799354,0.00016846,2]
[352001351,1738875032343,-500.0,0.00016846,2]
[352001353,1738875032353,-500.0,0.00016846,2]
[352001355,1738875032362,-500.0,0.00016846,2]
[352001357,1738875032374,-539.89,0.00016846,2]
[352001359,1738875032383,-500.0,0.00016846,2]
[352001361,1738875032394,-500.0,0.00016846,2]
[352001363,1738875032404,-500.0,0.00016846,2]
[352001365,1738875032413,-500.0,0.00016846,2]
[352001367,1738875032422,-500.0,0.00016846,2]
[352001369,1738875032431,-500.0,0.00016846,2]
[352001371,1738875032440,-500.0,0.00016846,2]
[352001373,1738875032449,-500.0,0.00016846,2]
[352001375,1738875032458,-500.0,0.00016846,2]
[352001377,1738875032467,-500.0,0.00016846,2]
[352001379,1738875032477,-500.0,0.00016846,2]
[352001381,1738875032486,-500.0,0.00016846,2]
[352001383,1738875032495,-500.0,0.00016846,2]
[352001385,1738875032505,-500.0,0.00016846,2]
[352001387,1738875032514,-500.0,0.00016846,2]
[352001389,1738875032523,-500.0,0.00016846,2]
[352001391,1738875032532,-500.0,0.00016846,2]
[352001393,1738875032541,-500.0,0.00016846,2]
[352001395,1738875032550,-500.0,0.00016846,2]
[352001397,1738875032559,-500.0,0.00016846,2]
[352001399,1738875032568,-500.0,0.00016846,2]
[352001401,1738875032578,-500.0,0.00016846,2]
[352001403,1738875032587,-500.0,0.00016846,2]
[352001405,1738875032596,-500.0,0.00016846,2]
[352001407,1738875032605,-500.0,0.00016846,2]
[352001409,1738875032614,-500.0,0.00016846,2]
[352001411,1738875032624,-500.0,0.00016846,2]
[352001413,1738875032633,-500.0,0.00016846,2]
[352001415,1738875032643,-500.0,0.00016846,2]
[352001417,1738875032652,-500.0,0.00016846,2]
[352001419,1738875032662,-500.0,0.00016846,2]
[352001421,1738875032671,-500.0,0.00016846,2]
[352001423,1738875032681,-500.0,0.00016846,2]
[352001425,1738875032691,-500.0,0.00016846,2]
[352001426,1738875032700,-500.0,0.00016846,2]
[352001428,1738875032709,-500.0,0.00016846,2]
[352001430,1738875032718,-500.0,0.00016846,2]
[352001432,1738875032727,-500.0,0.00016846,2]
[352001434,1738875032737,-500.0,0.00016846,2]
[352001436,1738875032750,-500.0,0.00016846,2]
[352001438,1738875032762,-500.0,0.00016846,2]
[352001440,1738875032774,-500.0,0.00016846,2]
[352001442,1738875032784,-500.0,0.00016846,2]
[352001444,1738875032797,-500.0,0.00016846,2]
[352001447,1738875032811,-500.0,0.00016846,2]
[352001448,1738875032821,-500.0,0.00016846,2]
[352001449,1738875032835,-500.0,0.00016846,2]
[352001450,1738875032846,-500.0,0.00016846,2]
[352001451,1738875032858,-500.0,0.00016846,2]
[352001452,1738875032870,-500.0,0.00016846,2]
[352001453,1738875032883,-500.0,0.00016846,2]
[352001454,1738875032893,-500.0,0.00016846,2]
[352001455,1738875032903,-500.0,0.00016846,2]
[352001456,1738875032913,-215.15626788,0.00016846,2]
[352001457,1738875032924,-500.0,0.00016846,2]
[352001458,1738875032935,-500.0,0.00016846,2]
[352001459,1738875032948,-500.0,0.00016846,2]
[352001460,1738875032959,-500.0,0.00016846,2]
[352001461,1738875032969,-500.0,0.00016846,2]
[352001462,1738875032978,-500.0,0.00016846,2]
[352001463,1738875032987,-500.0,0.00016846,2]
[352001464,1738875032998,-500.0,0.00016846,2]
[352001465,1738875033010,-500.0,0.00016846,2]
[352001466,1738875033021,-517.32610261,0.00016846,2]
[352001467,1738875033030,-500.0,0.00016846,2]
[352001468,1738875033040,-500.0,0.00016846,2]
[352001469,1738875033050,-500.0,0.00016846,2]
[352001470,1738875033060,-171.33546447,0.00016846,2]
[352001471,1738875033069,-500.0,0.00016846,2]
[352001472,1738875033079,-500.0,0.00016846,2]
[352001473,1738875033088,-500.0,0.00016846,2]
[352001474,1738875033098,-500.0,0.00016846,2]
[352001475,1738875033108,-500.0,0.00016846,2]
[352001476,1738875033118,-500.0,0.00016846,2]
[352001477,1738875033128,-500.0,0.00016846,2]
[352001478,1738875033140,-500.0,0.00016846,2]
[352001479,1738875033150,-500.0,0.00016846,2]
[352001480,1738875033160,-500.0,0.00016846,2]
[352001481,1738875033170,-500.0,0.00016846,2]
[352001482,1738875033180,-595.64417027,0.00016846,2]
[352001483,1738875033191,-500.0,0.00016846,2]
[352001484,1738875033201,-500.0,0.00016846,2]
[352001485,1738875033211,-500.0,0.00016846,2]
[352001486,1738875033220,-500.0,0.00016846,2]
[352001487,1738875033230,-500.0,0.00016846,2]
[352001488,1738875033240,-500.0,0.00016846,2]
[352001489,1738875033250,-500.0,0.00016846,2]
[352001490,1738875033260,-500.0,0.00016846,2]
[352001491,1738875033270,-500.0,0.00016846,2]
[352001492,1738875033280,-500.0,0.00016846,2]
[352001493,1738875033290,-500.0,0.00016846,2]
[352001494,1738875033301,-500.0,0.00016846,2]
[352001495,1738875033311,-500.0,0.00016846,2]
[352001496,1738875033325,-500.0,0.00016846,2]
[352001497,1738875033335,-500.0,0.00016846,2]
[352001498,1738875033345,-500.0,0.00016846,2]
[352001499,1738875033356,-500.0,0.00016846,2]
[352001500,1738875033367,-500.0,0.00016846,2]
[352001501,1738875033377,-500.0,0.00016846,2]
[352001502,1738875033387,-500.0,0.00016846,2]
[352001503,1738875033403,-500.0,0.00016846,2]
[352001504,1738875033413,-500.0,0.00016846,2]
[352001505,1738875033423,-500.0,0.00016846,2]
[352001506,1738875033433,-500.0,0.00016846,2]
[352001507,1738875033442,-500.0,0.00016846,2]
[352001508,1738875033452,-500.0,0.00016846,2]
[352001509,1738875033462,-500.0,0.00016846,2]
[352001510,1738875033472,-500.0,0.00016846,2]
[352001511,1738875033482,-500.0,0.00016846,2]
[352001512,1738875033492,-368.7,0.00016846,2]
[352001513,1738875033502,-486.934,0.00016849,2]
[352001514,1738875033513,-150.0,0.00016849,2]
[352001515,1738875033523,-673.19,0.00016849,2]
[352001516,1738875033532,-436.92,0.00016849,2]
[352001517,1738875033542,-150.0,0.00016849,2]
[352001518,1738875033552,-150.0,0.00016849,2]
[352001519,1738875033562,-2000.0,0.00016864,2]
[352001520,1738875033572,-200.0,0.00016864,2]
[352001521,1738875033581,-500.0,0.00016907,2]
[352001522,1738875033591,-431.53194145,0.00016948,2]
[352001523,1738875033600,-500.0,0.00016949,2]
[352001524,1738875033610,-500.0,0.00016983,2]
[352001525,1738875033620,-500.0,0.00016983,2]
[352001526,1738875033630,-157.02,0.00016983,2]
[352001527,1738875033641,-500.0,0.00016983,2]
[352001528,1738875033651,-500.0,0.00016983,2]
[352001529,1738875033662,-500.0,0.00016983,2]
[352001530,1738875033672,-500.0,0.00016983,2]
[352001531,1738875033682,-500.0,0.00016983,2]
[352001532,1738875033692,-500.0,0.00016983,2]
[352001533,1738875033701,-500.0,0.00016983,2]
[352001534,1738875033710,-500.0,0.00016983,2]
[352001535,1738875033720,-500.0,0.00016983,2]
[352001536,1738875033730,-500.0,0.00016983,2]
[352001537,1738875033739,-500.0,0.00016983,2]
[352001538,1738875033750,-513.57,0.00016983,2]
[352001539,1738875033759,-500.0,0.00016983,2]
[352001540,1738875033769,-500.0,0.00016983,2]
[352001541,1738875033778,-500.0,0.00016983,2]
[352001542,1738875033788,-500.0,0.00016983,2]
[352001543,1738875033798,-500.0,0.00016983,2]
[352001544,1738875033808,-500.0,0.00016983,2]
[352001545,1738875033817,-500.0,0.00016983,2]
[352001546,1738875033827,-500.0,0.00016983,2]
[352001547,1738875033837,-500.0,0.00016983,2]
[352001548,1738875033846,-345.71,0.00016983,2]
[352001549,1738875033856,-500.0,0.00016983,2]
[352001550,1738875033866,-631.75,0.00016983,2]
[352001551,1738875033875,-500.0,0.00016983,2]
[352001552,1738875033885,-500.0,0.00016983,2]
[352001553,1738875033896,-500.0,0.00016983,2]
[352001554,1738875033906,-500.0,0.00016983,2]
[352001555,1738875033916,-179.53,0.00016983,2]
[352001556,1738875033926,-500.0,0.00016983,2]
[352001557,1738875033935,-500.0,0.00016983,2]
[352001558,1738875033945,-215.05,0.00016983,2]
[352001559,1738875033955,-500.0,0.00016983,2]
[352001560,1738875033965,-245.94,0.00016983,2]
[352001561,1738875033974,-500.0,0.00016983,2]
[352001562,1738875033983,-516.68,0.00016983,2]
[352001563,1738875033993,-500.0,0.00016983,2]
[352001564,1738875034002,-545.9,0.00016983,2]
[352001565,1738875034012,-500.0,0.00016983,2]
[352001566,1738875034021,-500.0,0.00016983,2]
[352001567,1738875034031,-500.0,0.00016983,2]
[352001568,1738875034040,-500.0,0.00016983,2]
[352001569,1738875034051,-500.0,0.00016992,2]
[352001570,1738875034060,-2000.0,0.00016992,2]
[352001571,1738875034070,-500.0,0.00016992,2]
[352001572,1738875034079,-500.0,0.00016992,2]
[352001573,1738875034089,-200.0,0.00016992,2]
[352001574,1738875034098,-500.0,0.00017,7]
[352001575,1738875034108,-500.0,0.00017,7]
[352001576,1738875034118,-500.0,0.00017,7]
[352001577,1738875034127,-500.0,0.00017,7]
[352001578,1738875034137,-500.0,0.00017,7]
[352001579,1738875034148,-500.0,0.00017,7]
[352001580,1738875034158,-500.0,0.00017,7]
[352001581,1738875034168,-500.0,0.00017,7]
[352001582,1738875034178,-500.0,0.00017,7]
[352001583,1738875034187,-500.0,0.00017,7]
[352001584,1738875034197,-500.0,0.00017,7]
[352001585,1738875034207,-500.0,0.00017,7]
[352001586,1738875034217,-500.0,0.00017,7]
[352001587,1738875034227,-500.0,0.00017,7]
[352001588,1738875034237,-500.0,0.00017,7]
[352001589,1738875034247,-500.0,0.00017,7]
[352001590,1738875034256,-391.58,0.00017,7]
[352001591,1738875034266,-500.0,0.00017,7]
[352001592,1738875034275,-500.0,0.00017,7]
[352001593,1738875034286,-500.0,0.00017,7]
[352001594,1738875034295,-500.0,0.00017,7]
[352001595,1738875034305,-500.0,0.00017,7]
[352001596,1738875034316,-500.0,0.00017,7]
[352001597,1738875034327,-500.0,0.00017,7]
[352001598,1738875034336,-500.0,0.00017,7]
[352001599,1738875034346,-500.0,0.00017,7]
[352001600,1738875034357,-500.0,0.00017,7]
[352001601,1738875034367,-500.0,0.00017,7]
[352001602,1738875034377,-500.0,0.00017,7]
[352001603,1738875034386,-500.0,0.00017,7]
[352001604,1738875034402,-500.0,0.00017,7]
[352001605,1738875034413,-500.0,0.00017,7]
[352001606,1738875034423,-500.0,0.00017,7]
[352001607,1738875034433,-442.04,0.00017,7]
[352001608,1738875034442,-500.0,0.00017,7]
[352001609,1738875034452,-500.0,0.00017,7]
[352001610,1738875034462,-500.0,0.00017,7]
[352001611,1738875034471,-500.0,0.00017,7]
[352001612,1738875034481,-1000.0,0.00017,2]
[352001613,1738875034491,-150.0,0.00017006,2]
[352001614,1738875034500,-150.0,0.00017012,2]
[352001615,1738875034510,-156.39864357,0.00017018,2]
[352001616,1738875034519,-150.0,0.00017028,2]
[352001617,1738875034529,-500.0,0.00017034,2]
[352001618,1738875034539,-3330.2566745,0.00017066,2]
[352001619,1738875034548,-150.0,0.00017073,2]
[352001620,1738875034557,-150.0,0.00017076,2]
[352001621,1738875034567,-500.0,0.00017077,2]
[352001622,1738875034576,-150.0,0.00017088,2]
[352001623,1738875034586,-150.0,0.00017097,2]
[352001624,1738875034596,-150.0,0.000171,2]
[352001625,1738875034605,-150.0,0.00017102,2]
[352001626,1738875034615,-150.0,0.00017106,2]
[352001627,1738875034625,-150.0,0.00017108,2]
[352001628,1738875034635,-150.0,0.00017109,2]
[352001629,1738875034647,-150.0,0.00017113,2]
[352001630,1738875034657,-150.0,0.00017115,2]
[352001631,1738875034668,-150.0,0.00017115,2]
[352001632,1738875034678,-500.0,0.00017117,2]
[352001633,1738875034688,-500.0,0.00017117,2]
[352001634,1738875034698,-500.0,0.00017117,2]
[352001635,1738875034708,-500.0,0.00017117,2]
[352001636,1738875034717,-549.08997481,0.00017117,2]
[352001637,1738875034727,-500.0,0.00017117,2]
[352001638,1738875034737,-500.0,0.00017117,2]
[352001639,1738875034747,-622.92864485,0.00017117,2]
[352001640,1738875034757,-504.37455527,0.00017117,2]
[352001641,1738875034766,-500.0,0.00017117,2]
[352001642,1738875034776,-500.0,0.00017117,2]
[352001643,1738875034786,-500.0,0.00017117,2]
[352001644,1738875034796,-504.12057581,0.00017117,2]
[352001645,1738875034806,-500.0,0.00017117,2]
[352001646,1738875034816,-508.66,0.00017117,2]
[352001647,1738875034825,-500.0,0.00017117,2]
[352001648,1738875034835,-500.0,0.00017117,2]
[352001649,1738875034844,-500.0,0.00017117,2]
[352001650,1738875034854,-218.64559865,0.00017117,2]
[352001651,1738875034864,-500.0,0.00017117,2]
[352001652,1738875034874,-500.0,0.00017117,2]
[352001653,1738875034883,-500.0,0.00017117,2]
[352001654,1738875034894,-500.0,0.00017117,2]
[352001655,1738875034903,-563.7706201,0.00017117,2]
[352001656,1738875034913,-500.0,0.00017117,2]
[352001657,1738875034923,-500.0,0.00017117,2]
[352001658,1738875034932,-500.0,0.00017117,2]
[352001659,1738875034941,-500.0,0.00017117,2]
[352001660,1738875034950,-489.50146484,0.00017117,2]
[352001661,1738875034966,-10.49853516,0.00017117,2]
[352001662,1738875034975,-500.0,0.00017117,2]
[352001663,1738875034985,-500.0,0.00017117,2]
[352001664,1738875034994,-500.0,0.00017117,2]
[352001665,1738875035003,-500.0,0.00017117,2]
[352001666,1738875035013,-500.0,0.00017117,2]
[352001667,1738875035023,-513.23654344,0.00017117,2]
[352001668,1738875035032,-500.0,0.00017117,2]
[352001669,1738875035042,-500.0,0.00017117,2]
[352001670,1738875035222,-500.0,0.00017117,2]
[352001671,1738875035232,-645.2119426,0.00017117,2]
[352001672,1738875035242,-500.0,0.00017117,2]
[352001673,1738875035252,-500.0,0.00017117,2]
[352001674,1738875035262,-500.0,0.00017117,2]
[352001675,1738875035272,-500.0,0.00017117,2]
[352001676,1738875035283,-500.0,0.00017117,2]
[352001677,1738875035292,-500.0,0.00017117,2]
[352001678,1738875035302,-161.5038213,0.00017117,2]
[352001679,1738875035313,-500.0,0.00017117,2]
[352001680,1738875035325,-500.0,0.00017117,2]
[352001681,1738875035335,-500.0,0.00017117,2]
[352001682,1738875035344,-500.0,0.00017117,2]
[352001683,1738875035355,-517.84627762,0.00017117,2]
[352001684,1738875035365,-500.0,0.00017117,2]
[352001685,1738875035376,-500.0,0.00017117,2]
[352001686,1738875035386,-500.0,0.00017117,2]
[352001687,1738875035399,-500.0,0.00017117,2]
[352001688,1738875035408,-500.0,0.00017117,2]
[352001689,1738875035418,-500.0,0.00017117,2]
[352001690,1738875035427,-345.78188563,0.00017117,2]
[352001691,1738875035437,-456.00813732,0.00017117,2]
[352001692,1738875035451,-43.99186268,0.00017117,2]
[352001693,1738875035462,-500.0,0.00017117,2]
[352001694,1738875035472,-417.6872087,0.00017117,2]
[352001695,1738875035498,-82.3127913,0.00017117,2]
[352001696,1738875035508,-500.0,0.00017117,2]
[352001697,1738875035517,-500.0,0.00017117,2]
[352001698,1738875035527,-500.0,0.00017117,2]
[352001699,1738875035536,-500.0,0.00017117,2]
[352001700,1738875035545,-888.06,0.00017117,2]
[352001701,1738875035555,-500.0,0.00017117,2]
[352001702,1738875035564,-500.0,0.00017117,2]
[352001703,1738875035574,-500.0,0.00017117,2]
[352001704,1738875035583,-500.0,0.00017117,2]
[352001705,1738875035592,-500.0,0.00017117,2]
[352001706,1738875035602,-550.54,0.00017117,2]
[352001707,1738875035611,-837.24,0.00017117,2]
[352001708,1738875035621,-500.0,0.00017117,2]
[352001709,1738875035631,-500.0,0.00017117,2]
[352001710,1738875035643,-500.0,0.00017117,2]